bitfinex/quotes_SOLUSD_20260228
["timestamp","ask_amount","ask_price","bid_price","bid_amount"]
[1772287604833,4.2332601,80.631,80.6,12.05144699]
[1772287605024,28.68703872,80.63,80.591,4.38701948]
[1772287605211,4.2332601,80.629,80.592,12.40817947]
[1772287605408,4.2332601,80.619,80.58,12.05144699]
[1772287605613,4.2332601,80.609,80.57,12.05144699]
[1772287605834,4.2332601,80.609,80.571,4.38701948]
[1772287607316,12.05144699,80.6,80.571,16.7983338]
[1772287607619,12.05144699,80.6,80.559,4.38701948]
[1772287607835,12.05144699,80.6,80.56,12.05144699]
[1772287608945,12.05144699,80.6,80.56,16.43846647]
[1772287609252,12.05144699,80.6,80.553,4.38701948]
[1772287609430,12.05144699,80.6,80.56,12.05144699]
[1772287609941,16.63897665,80.608,80.571,4.38701948]
[1772287610251,12.05144699,80.6,80.561,4.38701948]
[1772287610746,12.05144699,80.6,80.56,12.05144699]
[1772287610946,12.05144699,80.59,80.556,4.38701948]
[1772287611245,12.40710182,80.599,80.562,12.41280007]
[1772287611434,12.40710182,80.599,80.563,4.38701948]
[1772287612153,4.2332601,80.636,80.591,4.38701948]
[1772287612334,12.401255,80.637,80.61,12.05144699]
[1772287612534,12.05144699,80.64,80.601,4.38701948]
[1772287612730,16.6345151,80.637,80.601,4.38701948]
[1772287613850,4.2332601,80.637,80.603,4.38701948]
[1772287614051,4.2332601,80.637,80.61,12.05144699]
[1772287614354,12.40059145,80.642,80.61,12.05144699]
[1772287614547,4.2332601,80.648,80.61,12.05144699]
[1772287614754,12.40070644,80.641,80.61,12.05144699]
[1772287615050,12.40014172,80.645,80.61,12.05144699]
[1772287615228,16.63340182,80.645,80.61,12.05144699]
[1772287615636,16.63340182,80.645,80.611,12.40525486]
[1772287617436,4.2332601,80.644,80.611,12.40525486]
[1772287618456,4.2332601,80.639,80.607,12.40576811]
[1772287619648,4.2332601,80.638,80.603,12.40639023]
[1772287619856,4.2332601,80.638,80.604,4.38701948]
[1772287620442,4.2332601,80.649,80.61,12.05144699]
[1772287620669,4.2332601,80.647,80.61,16.43846647]
[1772287620867,12.39879465,80.654,80.621,4.38701948]
[1772287621046,4.2332601,80.639,80.591,4.38701948]
[1772287621356,4.2332601,80.647,80.611,4.38701948]
[1772287621572,12.39987104,80.646,80.613,4.38701948]
[1772287622066,12.05144699,80.68,80.64,12.05144699]
[1772287622249,4.2332601,80.679,80.64,12.05144699]
[1772287622444,4.2332601,80.679,80.641,4.38701948]
[1772287623257,4.2332601,80.669,80.631,4.38701948]
[1772287623657,4.2332601,80.678,80.641,4.38701948]
[1772287623963,4.2332601,80.699,80.661,4.38701948]
[1772287624350,12.39188083,80.698,80.661,4.38701948]
[1772287624760,12.39188083,80.698,80.663,4.38701948]
[1772287625458,12.26289765,80.7,80.664,61.5]
[1772287625763,49.52477577,80.768,80.69,14.82786872]
[1772287625764,4.2332601,80.733,80.69,14.82786872]
[1772287625963,4.2332601,80.733,80.7,12.06289765]
[1772287626348,4.2332601,80.729,80.69,12.06289765]
[1772287626548,4.2332601,80.729,80.7,12.06289765]
[1772287626751,4.2332601,80.747,80.71,12.06289765]
[1772287626956,16.61762112,80.747,80.72,11.44314856]
[1772287627156,4.2332601,80.746,80.71,12.06289765]
[1772287627552,12.38466778,80.745,80.711,12.38988489]
[1772287627765,4.2332601,80.739,80.7,12.06289765]
[1772287627968,4.2332601,80.739,80.71,12.06289765]
[1772287628275,4.2332601,80.749,80.71,12.06289765]
[1772287628877,16.61731439,80.749,80.72,12.06289765]
[1772287629176,4.2332601,80.748,80.71,12.06289765]
[1772287629467,12.38405429,80.749,80.693,12.39264868]
[1772287629468,4.2332601,80.729,80.693,12.39264868]
[1772287629674,4.2332601,80.729,80.674,30.98875705]
[1772287629853,4.2332601,80.719,80.681,2.76497107]
[1772287630657,4.2332601,80.719,80.69,12.06289765]
[1772287631076,4.2332601,80.719,80.681,2.76497107]
[1772287631280,4.2332601,80.719,80.69,12.06289765]
[1772287631652,4.2332601,80.719,80.691,12.39295584]
[1772287632156,4.20309846,80.717,80.681,12.39449188]
[1772287632351,4.20309846,80.717,80.681,43.38072159]
[1772287632774,4.20309846,80.717,80.69,12.06289765]
[1772287633081,4.20309846,80.717,80.682,2.76497107]
[1772287633287,4.20309846,80.717,80.68,12.06289765]
[1772287633288,4.20309846,80.709,80.67,12.06289765]
[1772287633571,4.20309846,80.689,80.65,12.06289765]
[1772287633780,16.59651507,80.688,80.651,12.3991023]
[1772287634076,4.20309846,80.659,80.62,12.06289765]
[1772287634272,16.26599611,80.65,80.614,2.76497107]
[1772287634772,4.20309846,80.649,80.614,2.76497107]
[1772287635153,4.20309846,80.67,80.63,12.06289765]
[1772287635360,4.20309846,80.659,80.613,2.76497107]
[1772287635678,4.20309846,80.659,80.62,12.06289765]
[1772287635857,4.20309846,80.657,80.621,43.41300653]
[1772287636775,4.20309846,80.629,80.59,12.06289765]
[1772287637069,4.20309846,80.642,80.61,12.06289765]
[1772287637453,4.20309846,80.642,80.574,155.13689277]
[1772287637454,4.20309846,80.629,80.59,12.06289765]
[1772287637882,4.20309846,80.619,80.581,43.43455652]
[1772287638695,4.20309846,80.619,80.59,12.06289765]
[1772287638883,4.20309846,80.619,80.581,43.43455652]
[1772287639999,4.20309846,80.619,80.581,12.40987329]
[1772287640303,4.20309846,80.609,80.581,12.40987329]
[1772287640989,4.20309846,80.589,80.55,12.16289765]
[1772287641303,4.20309846,80.589,80.55,14.92786872]
[1772287641513,4.20309846,80.589,80.55,0.1]
[1772287641721,4.20309846,80.579,80.55,0.1]
[1772287642025,4.20309846,80.577,80.55,0.1]
[1772287642313,4.20309846,80.569,80.55,0.1]
[1772287643294,4.20309846,80.592,80.56,12.06289765]
[1772287644020,4.20309846,80.607,80.57,12.06289765]
[1772287644205,12.06289765,80.6,80.56,12.06289765]
[1772287644521,4.20309846,80.599,80.56,12.06289765]
[1772287645213,111.6108569,80.638,80.552,43.45019365]
[1772287645214,4.20309846,80.609,80.57,12.06289765]
[1772287645414,4.20309846,80.609,80.58,12.06289765]
[1772287645820,4.20309846,80.619,80.59,12.06289765]
[1772287645999,4.20309846,80.619,80.58,12.06289765]
[1772287646318,4.20309846,80.617,80.58,12.06289765]
[1772287646908,4.20309846,80.609,80.57,12.06289765]
[1772287647421,4.20309846,80.599,80.561,43.44533954]
[1772287647620,4.20309846,80.589,80.561,43.44533954]
[1772287647803,4.20309846,80.589,80.561,12.41295415]
[1772287648001,12.06289765,80.62,80.58,12.06289765]
[1772287648221,49.58345138,80.673,80.59,16.45225335]
[1772287648521,12.06289765,80.63,80.59,16.45225335]
[1772287648921,12.06289765,80.63,80.591,4.3893557]
[1772287649304,3.69383402,80.65,80.6,12.06289765]
[1772287649305,12.06289765,80.64,80.6,12.06289765]
[1772287649901,4.20309846,80.639,80.6,12.06289765]
[1772287650121,12.40110121,80.638,80.601,12.40679396]
[1772287650311,4.20309846,80.629,80.601,12.40679396]
[1772287650620,4.20309846,80.653,80.62,12.06289765]
[1772287650826,12.39484827,80.679,80.64,12.06289765]
[1772287651137,12.06289765,80.68,80.64,12.06289765]
[1772287652004,3.69383402,80.69,80.613,4.3893557]
[1772287652005,12.06289765,80.66,80.613,4.3893557]
[1772287652213,12.06289765,80.68,80.615,4.3893557]
[1772287652522,12.06289765,80.67,80.615,4.3893557]
[1772287653317,4.20309846,80.669,80.615,4.3893557]
[1772287654221,4.20309846,80.677,80.617,4.3893557]
[1772287656306,16.59835851,80.676,80.619,4.3893557]
[1772287656521,4.20309846,80.675,80.619,4.3893557]
[1772287656725,12.06289765,80.67,80.619,4.3893557]
[1772287657018,16.26599611,80.67,80.619,4.3893557]
[1772287657408,4.20309846,80.669,80.619,4.3893557]
[1772287657803,4.20309846,80.679,80.619,4.3893557]
[1772287658126,4.20309846,80.678,80.619,4.3893557]
[1772287658418,4.20309846,80.678,80.608,3.69383402]
[1772287658419,4.20309846,80.669,80.621,4.3893557]
[1772287659132,12.06289765,80.68,80.642,4.3893557]
[1772287659301,4.20309846,80.679,80.642,4.3893557]
[1772287659822,4.20309846,80.679,80.64,12.06289765]
[1772287660508,12.06289765,80.68,80.641,12.40063987]
[1772287660509,4.20309846,80.677,80.641,12.40063987]
[1772287660727,4.20309846,80.677,80.641,16.56896249]
[1772287660928,4.20309846,80.677,80.642,145.99536547]
[1772287661232,4.20309846,80.677,80.643,145.99536547]
[1772287661522,4.07910504,80.675,80.644,158.39554403]
[1772287662502,12.06289765,80.67,80.644,145.99536547]
[1772287662729,12.06289765,80.67,80.645,61.5]
[1772287662922,4.07910504,80.669,80.645,61.5]
[1772287663334,12.39648931,80.668,80.645,61.5]
[1772287664027,12.39531569,80.676,80.646,12.39987104]
[1772287664220,4.470255,80.675,80.646,12.39987104]
[1772287664425,4.470255,80.675,80.645,61.5]
[1772287665325,12.39648931,80.668,80.645,61.5]
[1772287665524,16.86674431,80.668,80.645,61.5]
[1772287665734,4.470255,80.667,80.645,61.5]
[1772287666612,12.39595231,80.672,80.645,61.5]
[1772287667124,12.06289765,80.67,80.645,61.5]
[1772287667516,4.470255,80.671,80.646,12.39987104]
[1772287667747,4.470255,80.692,80.677,61.5]
[1772287667914,4.470255,80.692,80.661,4.06105607]
[1772287667915,12.39295584,80.691,80.661,4.06105607]
[1772287668313,1e-08,80.692,80.661,4.06105607]
[1772287668522,12.06289765,80.69,80.661,4.06105607]
[1772287669113,3.69383402,80.72,80.663,4.06105607]
[1772287669314,3.69383402,80.72,80.642,124.00475805]
[1772287669315,12.06289765,80.69,80.651,4.06105607]
[1772287669613,12.06289765,80.68,80.641,4.06105607]
[1772287669934,12.06289765,80.67,80.643,4.06105607]
[1772287670329,12.06289765,80.68,80.643,4.06105607]
[1772287670507,14.39788889,80.68,80.643,4.06105607]
[1772287670712,2.33499124,80.679,80.643,4.06105607]
[1772287671619,12.06289765,80.67,80.643,4.06105607]
[1772287671823,12.06289765,80.66,80.641,58.73890852]
[1772287672021,12.06289765,80.66,80.641,58.71532274]
[1772287672925,12.06289765,80.66,80.633,12.40176132]
[1772287673245,12.06289765,80.66,80.634,4.06105607]
[1772287674129,12.06289765,80.66,80.635,12.40156259]
[1772287674332,12.06289765,80.66,80.635,16.46261866]
[1772287674538,24.46075312,80.66,80.636,143.21068821]
[1772287674913,12.06289765,80.65,80.637,143.21068821]
[1772287675110,12.06289765,80.65,80.638,143.21068821]
[1772287678622,2.2885249,80.649,80.627,42.18724044]
[1772287678936,2.26563965,80.639,80.611,102.3]
[1772287679234,12.06289765,80.63,80.612,61.5]
[1772287679437,2.26563965,80.639,80.612,61.5]
[1772287679735,12.06289765,80.63,80.613,65.56105607]
[1772287680235,12.06289765,80.64,80.614,4.06105607]
[1772287680535,12.06289765,80.64,80.6,12.06289765]
[1772287680536,12.06289765,80.65,80.618,4.06105607]
[1772287680746,12.06289765,80.65,80.62,4.06105607]
[1772287681040,12.06289765,80.64,80.62,4.06105607]
[1772287681338,111.54703136,80.684,80.622,4.06105607]
[1772287681339,12.39817994,80.657,80.622,4.06105607]
[1772287681538,12.06289765,80.66,80.624,4.06105607]
[1772287681842,12.06289765,80.67,80.624,4.06105607]
[1772287682043,3.69383402,80.69,80.617,43.41516057]
[1772287682044,2.26563965,80.698,80.651,4.06105607]
[1772287682343,12.06289765,80.69,80.651,4.06105607]
[1772287682639,3.69383402,80.71,80.652,12.39894856]
[1772287682640,12.06289765,80.68,80.652,12.39894856]
[1772287682941,12.06289765,80.7,80.653,4.06105607]
[1772287683124,12.06289765,80.71,80.661,4.06105607]
[1772287683319,12.04960618,80.71,80.671,4.06105607]
[1772287683515,12.04960618,80.7,80.671,4.06105607]
[1772287683732,2.26563965,80.717,80.671,4.06105607]
[1772287683938,15.7434402,80.73,80.681,4.06105607]
[1772287684137,12.38733069,80.728,80.681,4.06105607]
[1772287684635,12.38733069,80.728,80.683,4.06105607]
[1772287685232,12.04960618,80.73,80.683,4.06105607]
[1772287685435,12.04960618,80.73,80.691,4.06105607]
[1772287685739,12.04960618,80.73,80.701,4.06105607]
[1772287686241,3.17216708,80.738,80.701,4.06105607]
[1772287686431,12.04960618,80.72,80.683,4.06105607]
[1772287686634,12.04960618,80.72,80.641,49.60245371]
[1772287686635,12.04960618,80.72,80.685,4.06105607]
[1772287686942,12.04960618,80.73,80.685,4.06105607]
[1772287687124,12.04960618,80.73,80.69,12.04960618]
[1772287687323,12.04960618,80.73,80.691,4.06105607]
[1772287688042,12.04960618,80.73,80.684,105.34926378]
[1772287688043,12.04960618,80.74,80.701,4.06105607]
[1772287688744,12.04960618,80.74,80.703,4.06105607]
[1772287688923,12.04960618,80.75,80.711,4.06105607]
[1772287689727,15.55453458,80.76,80.711,4.06105607]
[1772287689936,24.43197368,80.76,80.711,4.06105607]
[1772287690327,12.04960618,80.76,80.721,4.06105607]
[1772287690844,12.04960618,80.76,80.723,4.13494386]
[1772287691247,3.17216708,80.77,80.723,4.13494386]
[1772287691455,12.04960618,80.77,80.731,4.13494386]
[1772287691657,12.04960618,80.76,80.731,4.13494386]
[1772287692036,2.40011793,80.777,80.741,4.13494386]
[1772287692245,12.04960618,80.8,80.751,4.13494386]
[1772287692441,12.04960618,80.8,80.761,4.13494386]
[1772287692747,12.04960618,80.79,80.763,4.13494386]
[1772287692925,3.17216708,80.818,80.77,12.04960618]
[1772287693124,3.17216708,80.818,80.728,3.69383402]
[1772287693125,3.17216708,80.789,80.751,4.13494386]
[1772287693326,12.04960618,80.79,80.751,4.13494386]
[1772287693523,12.04960618,80.78,80.751,4.13494386]
[1772287693743,12.04960618,80.8,80.751,4.13494386]
[1772287694243,12.04960618,80.79,80.761,4.13494386]
[1772287694437,3.17216708,80.779,80.74,4.13494386]
[1772287694639,3.17216708,80.779,80.742,4.13494386]
[1772287694640,12.04960618,80.77,80.742,4.13494386]
[1772287694948,12.04960618,80.79,80.742,4.13494386]
[1772287695246,12.04960618,80.79,80.751,4.13494386]
[1772287695739,12.04960618,80.78,80.751,4.13494386]
[1772287696543,12.04960618,80.77,80.751,4.13494386]
[1772287696725,12.37945505,80.779,80.752,12.38359421]
[1772287697127,12.04960618,80.78,80.753,4.13494386]
[1772287698225,15.54966267,80.792,80.753,4.13494386]
[1772287698548,12.04960618,80.78,80.753,4.13494386]
[1772287698740,12.04960618,80.79,80.755,4.13494386]
[1772287698936,24.42747351,80.79,80.755,4.13494386]
[1772287699135,3.17216708,80.794,80.755,4.13494386]
[1772287699341,49.69320133,80.82,80.749,16.51898438]
[1772287699342,12.04960618,80.78,80.749,16.51898438]
[1772287699541,12.04960618,80.78,80.75,4.13494386]
[1772287699742,12.04960618,80.77,80.75,4.13494386]
[1772287699943,12.04960618,80.78,80.75,4.13494386]
[1772287700447,12.04960618,80.76,80.721,4.13494386]
[1772287700651,3.17216708,80.75,80.711,12.38988489]
[1772287700947,12.04960618,80.74,80.714,4.13494386]
[1772287702334,12.04960618,80.77,80.731,4.48397894]
[1772287702533,12.04960618,80.76,80.731,4.48397894]
[1772287702742,12.04960618,80.76,80.732,12.38666204]
[1772287703134,12.04960618,80.76,80.733,4.48397894]
[1772287703450,12.38252083,80.759,80.732,12.38666204]
[1772287703640,12.04960618,80.75,80.712,4.48397894]
[1772287703846,12.04960618,80.74,80.712,4.48397894]
[1772287704143,12.04960618,80.75,80.712,4.48397894]
[1772287704328,12.04960618,80.74,80.712,4.48397894]
[1772287704729,12.38558812,80.739,80.713,12.38957788]
[1772287704948,12.04960618,80.73,80.69,12.04960618]
[1772287705135,12.04960618,80.73,80.691,12.39295584]
[1772287705336,12.04960618,80.73,80.691,43.37534544]
[1772287706432,12.04960618,80.72,80.691,43.37534544]
[1772287706761,12.04960618,80.73,80.691,43.37534544]
[1772287706948,12.38712234,80.729,80.682,4.13494386]
[1772287707150,12.04960618,80.72,80.682,4.13494386]
[1772287707831,12.38592461,80.737,80.691,4.13494386]
[1772287708528,12.04960618,80.74,80.701,4.13494386]
[1772287708734,12.04960618,80.75,80.711,4.13494386]
[1772287708931,12.38405429,80.749,80.713,4.13494386]
[1772287709144,12.04960618,80.74,80.713,4.13494386]
[1772287709751,12.38405429,80.749,80.713,4.13494386]
[1772287710138,12.04960618,80.74,80.713,4.13494386]
[1772287710935,12.38558812,80.739,80.713,4.13494386]
[1772287711136,12.38558812,80.739,80.714,4.13494386]
[1772287712253,12.38558812,80.739,80.715,61.5]
[1772287712787,12.38558812,80.739,80.678,102.3]
[1772287712788,0.99446911,80.729,80.675,65.63494386]
[1772287712956,0.99446911,80.729,80.632,49.60789702]
[1772287712957,12.04960618,80.72,80.679,4.13494386]
[1772287713256,12.04960618,80.72,80.681,4.13494386]
[1772287713740,12.04960618,80.71,80.681,4.13494386]
[1772287714151,12.04960618,80.72,80.681,4.13494386]
[1772287714455,12.04960618,80.73,80.691,4.13494386]
[1772287714656,12.04960618,80.73,80.678,43.3823347]
[1772287714657,12.04960618,80.72,80.68,4.13494386]
[1772287715037,12.04960618,80.73,80.682,4.13494386]
[1772287715239,12.38661193,80.733,80.682,4.13494386]
[1772287715451,12.04960618,80.72,80.682,4.13494386]
[1772287715645,12.38592141,80.737,80.682,4.13494386]
[1772287715853,12.04960618,80.74,80.701,4.13494386]
[1772287716255,0.99446911,80.783,80.722,4.13494386]
[1772287716456,12.04960618,80.76,80.72,4.13494386]
[1772287716661,12.04960618,80.76,80.721,4.13494386]
[1772287717162,7.77524314,80.762,80.731,4.13494386]
[1772287718943,4.08448604,80.789,80.741,4.13494386]
[1772287719163,4.08448604,80.789,80.751,4.13494386]
[1772287721160,4.19944707,80.785,80.752,43.34257974]
[1772287721665,4.19944707,80.785,80.753,4.45560521]
[1772287722160,4.19944707,80.795,80.753,4.45560521]
[1772287722359,4.19944707,80.789,80.753,4.45560521]
[1772287723067,4.19944707,80.789,80.761,4.45560521]
[1772287723275,4.19944707,80.789,80.762,12.38206087]
[1772287723562,12.04960618,80.79,80.763,4.18712824]
[1772287723766,12.04960618,80.79,80.73,99.09523266]
[1772287723767,12.04960618,80.78,80.755,12.38303947]
[1772287723953,4.08836514,80.779,80.755,12.38303947]
[1772287725047,16.13797132,80.79,80.756,4.18712824]
[1772287725285,16.13797132,80.79,80.758,4.18712824]
[1772287725452,4.08836514,80.789,80.758,4.18712824]
[1772287726155,4.08836514,80.789,80.757,12.38282749]
[1772287726461,4.08836514,80.788,80.754,4.18712824]
[1772287726843,12.04960618,80.78,80.754,4.18712824]
[1772287727042,4.08836514,80.788,80.754,4.18712824]
[1772287727467,4.08836514,80.809,80.759,4.18712824]
[1772287727651,4.08836514,80.809,80.755,43.34096959]
[1772287727652,4.08836514,80.799,80.761,4.18712824]
[1772287727851,0.2,80.81,80.78,12.04960618]
[1772287728052,0.2,80.81,80.764,4.18712824]
[1772287728053,4.08836514,80.809,80.764,4.18712824]
[1772287728265,4.08836514,80.809,80.755,43.34096959]
[1772287728266,4.08836514,80.789,80.755,16.57026241]
[1772287728463,4.08836514,80.789,80.756,4.18712824]
[1772287729251,4.08836514,80.789,80.755,43.34096959]
[1772287729252,4.08836514,80.789,80.761,4.18712824]
[1772287729479,12.37807595,80.788,80.761,4.18712824]
[1772287729675,4.08836514,80.779,80.746,12.38445341]
[1772287729853,12.04960618,80.77,80.746,12.38445341]
[1772287730169,4.08836514,80.769,80.738,12.38574153]
[1772287730473,4.08836514,80.769,80.739,4.18712824]
[1772287730771,4.08836514,80.759,80.721,12.38834999]
[1772287730953,4.08836514,80.759,80.722,4.18712824]
[1772287731369,12.04960618,80.75,80.722,4.18712824]
[1772287731573,12.38317981,80.755,80.724,4.18712824]
[1772287731774,4.08836514,80.768,80.731,4.18712824]
[1772287732859,12.04960618,80.76,80.731,4.18712824]
[1772287733682,16.13797132,80.75,80.721,4.18712824]
[1772287733992,4.08836514,80.759,80.721,4.18712824]
[1772287734181,4.08836514,80.758,80.721,4.18712824]
[1772287734362,12.04960618,80.75,80.698,43.37158292]
[1772287734558,4.08836514,80.739,80.701,4.18712824]
[1772287735377,12.04960618,80.73,80.701,4.18712824]
[1772287735572,12.38712234,80.729,80.702,12.39126663]
[1772287735775,12.04960618,80.72,80.691,4.18712824]
[1772287736064,4.08836514,80.728,80.692,4.18712824]
[1772287736684,4.08836514,80.709,80.675,12.39541369]
[1772287736983,4.08836514,80.699,80.663,4.18712824]
[1772287737384,4.08836514,80.689,80.643,4.18712824]
[1772287737585,3.69383402,80.726,80.651,4.18712824]
[1772287737586,4.08836514,80.725,80.651,4.18712824]
[1772287737799,4.08836514,80.709,80.671,4.18712824]
[1772287738084,4.08836514,80.689,80.652,4.18712824]
[1772287738683,4.08836514,80.699,80.661,4.18712824]
[1772287738865,4.08836514,80.689,80.652,4.18712824]
[1772287739481,4.08836514,80.689,80.66,12.04960618]
[1772287739687,4.08836514,80.689,80.641,55.84]
[1772287739688,4.08836514,80.699,80.67,12.04960618]
[1772287739984,12.04960618,80.69,80.663,4.18712824]
[1772287740190,4.08836514,80.697,80.663,4.18712824]
[1772287740374,3.0150001,80.732,80.671,4.18712824]
[1772287740375,12.04960618,80.71,80.671,4.18712824]
[1772287740574,12.04960618,80.72,80.69,12.04960618]
[1772287740773,12.04960618,80.72,80.681,4.18712824]
[1772287740774,16.47702208,80.719,80.681,4.18712824]
[1772287741087,4.08836514,80.718,80.681,4.18712824]
[1772287741269,4.08836514,80.718,80.69,12.04960618]
[1772287741586,4.08836514,80.709,80.672,4.18712824]
[1772287741788,12.04960618,80.69,80.662,12.39741142]
[1772287742291,4.08836514,80.697,80.663,4.18712824]
[1772287742582,12.04960618,80.7,80.663,4.18712824]
[1772287742761,12.39172728,80.699,80.663,4.18712824]
[1772287743391,12.39172728,80.699,80.642,12.40048609]
[1772287743392,12.04960618,80.67,80.642,12.40048609]
[1772287743684,12.04960618,80.67,80.642,4.18712824]
[1772287744590,16.13797132,80.66,80.632,4.18712824]
[1772287744891,4.08836514,80.669,80.632,4.18712824]
[1772287745466,12.06267227,80.65,80.612,4.18712824]
[1772287745668,4.08836514,80.657,80.622,12.4035623]
[1772287746188,4.08836514,80.657,80.591,161.30833466]
[1772287746189,4.08836514,80.649,80.617,12.40431974]
[1772287746373,4.08836514,80.639,80.601,4.18712824]
[1772287747781,4.08836514,80.659,80.621,4.18712824]
[1772287748087,4.08836514,80.641,80.611,4.18712824]
[1772287748270,12.06267227,80.65,80.611,4.18712824]
[1772287748471,4.08836514,80.679,80.641,4.18712824]
[1772287749085,4.08836514,80.679,80.65,12.06267227]
[1772287749384,4.08836514,80.679,80.642,61.5]
[1772287749586,4.08836514,80.679,80.643,4.18712824]
[1772287750089,4.08836514,80.677,80.644,12.40017856]
[1772287750693,12.06267227,80.66,80.642,61.5]
[1772287750896,12.06267227,80.66,80.634,12.40171639]
[1772287752679,4.32241526,80.658,80.626,61.5]
[1772287752895,12.39787252,80.659,80.607,12.40587045]
[1772287752896,4.32241526,80.639,80.607,12.40587045]
[1772287754493,4.32241526,80.637,80.607,12.40587045]
[1772287754874,4.32241526,80.637,80.607,16.73318402]
[1772287755192,4.32241526,80.648,80.611,4.32731357]
[1772287755576,16.72201299,80.648,80.611,4.32731357]
[1772287755777,4.32241526,80.648,80.611,4.32731357]
[1772287756597,12.39971728,80.647,80.613,4.32731357]
[1772287757096,4.32241526,80.639,80.603,12.40648611]
[1772287757276,4.32241526,80.639,80.604,4.32731357]
[1772287758710,16.72338134,80.639,80.605,12.40617827]
[1772287759289,4.32241526,80.639,80.61,12.06267227]
[1772287759487,4.32241526,80.639,80.606,4.32731357]
[1772287759807,4.32241526,80.637,80.606,4.32731357]
[1772287759995,4.32241526,80.637,80.605,12.40617827]
[1772287760203,4.32241526,80.629,80.605,12.40617827]
[1772287760710,12.06267227,80.62,80.59,0.1]
[1772287760995,4.32241526,80.619,80.591,12.40833343]
[1772287762886,4.32241526,80.617,80.59,0.1]
[1772287763283,4.32241526,80.617,80.59,12.16267227]
[1772287763884,4.32241526,80.617,80.59,16.48998584]
[1772287764501,4.32241526,80.617,80.59,4.42731357]
[1772287764702,4.32241526,80.63,80.591,4.32731357]
[1772287764914,4.32241526,80.63,80.6,16.38998584]
[1772287765089,16.38508753,80.64,80.61,12.06267227]
[1772287765411,4.32241526,80.66,80.63,12.06267227]
[1772287765704,4.32241526,80.659,80.63,12.06267227]
[1772287765880,4.32241526,80.659,80.631,4.32731357]
[1772287766679,12.06267227,80.67,80.631,4.32731357]
[1772287766918,12.39576071,80.673,80.643,4.32731357]
[1772287767683,4.32241526,80.669,80.642,12.40048609]
[1772287768601,4.32241526,80.669,80.64,12.06267227]
[1772287768816,12.06267227,80.67,80.634,4.32731357]
[1772287768817,4.32241526,80.667,80.635,12.40156259]
[1772287769014,12.06267227,80.66,80.635,12.40156259]
[1772287769198,4.32241526,80.659,80.626,12.40290886]
[1772287769404,4.32241526,80.649,80.618,12.40417772]
[1772287769819,4.32241526,80.649,80.618,16.73149129]
[1772287769995,4.32241526,80.649,80.62,12.06267227]
[1772287770916,4.32241526,80.649,80.621,12.40371615]
[1772287771797,12.39956353,80.648,80.621,12.40371615]
[1772287772014,4.32241526,80.649,80.621,12.40371615]
[1772287772318,16.72187934,80.649,80.621,12.40371615]
[1772287773115,12.39956353,80.786,80.621,12.40371615]
[1772287773116,4.32241526,80.677,80.641,4.32731357]
[1772287773430,4.32241526,80.669,80.632,4.32731357]
[1772287774404,30.98407363,80.687,80.623,4.32731357]
[1772287774405,4.32241526,80.659,80.623,4.32731357]
[1772287775208,16.72033149,80.659,80.625,4.32731357]
[1772287775517,4.32241526,80.671,80.625,4.32731357]
[1772287775704,4.32241526,80.669,80.625,4.32731357]
[1772287776718,4.32241526,80.679,80.627,4.32731357]
[1772287776925,4.32241526,80.688,80.661,4.32731357]
[1772287777424,12.06267227,80.71,80.68,12.06267227]
[1772287777626,12.06267227,80.71,80.671,4.32731357]
[1772287777836,12.39028115,80.709,80.671,4.32731357]
[1772287778020,12.06267227,80.72,80.68,12.06267227]
[1772287778324,4.32241526,80.709,80.681,4.32731357]
[1772287778529,4.32241526,80.709,80.671,4.32731357]
[1772287779627,4.32241526,80.707,80.673,4.32731357]
[1772287779926,4.32241526,80.699,80.664,16.7244176]
[1772287780110,4.32241526,80.699,80.67,12.06267227]
[1772287780314,4.32241526,80.699,80.671,4.32731357]
[1772287781411,4.41999745,80.679,80.626,4.38398617]
[1772287781613,4.41999745,80.659,80.628,4.38398617]
[1772287782108,4.41999745,80.659,80.618,16.78816389]
[1772287782419,12.06267227,80.65,80.621,4.38398617]
[1772287783204,16.48266972,80.65,80.621,4.38398617]
[1772287783404,12.06267227,80.64,80.614,12.40474831]
[1772287783605,4.41999745,80.659,80.621,4.38398617]
[1772287785628,4.39198836,80.657,80.623,4.48512826]
[1772287786426,12.06267227,80.65,80.623,4.48512826]
[1772287786810,4.39198836,80.668,80.623,4.48512826]
[1772287787123,3.69383402,80.677,80.623,4.48512826]
[1772287787124,12.06267227,80.65,80.623,4.48512826]
[1772287787337,4.39198836,80.668,80.631,4.48512826]
[1772287787625,4.39198836,80.668,80.63,12.06267227]
[1772287787626,4.39198836,80.668,80.633,4.48512826]
[1772287787817,9.02978857,80.688,80.651,4.48512826]
[1772287788003,21.42324434,80.688,80.651,4.48512826]
[1772287788204,4.39198836,80.687,80.653,4.48512826]
[1772287789503,4.39198836,80.687,80.655,4.48512826]
[1772287790236,12.39372381,80.686,80.655,4.48512826]
[1772287790528,4.63780021,80.688,80.661,4.48512826]
[1772287790907,4.63780021,80.688,80.671,4.48512826]
[1772287791307,4.39198836,80.705,80.673,4.48512826]
[1772287791515,4.39198836,80.705,80.674,4.48512826]
[1772287791731,4.39198836,80.705,80.676,4.48512826]
[1772287792029,4.39198836,80.728,80.691,4.48512826]